[Event "2nd Summer Festival Belgrade GM 2019"]
[Site "Belgrade"]
[Date "2019.06.25"]
[Round "2.5"]
[White "Nandhidhaa, P V"]
[Black "Liu, Zhaoqi"]
[Result "1-0"]
[ECO "C04"]
[WhiteElo "2259"]
[BlackElo "2386"]
[Annotator "ChessBase"]
[PlyCount "129"]
[EventDate "2019.06.25"]
[EventType "tourn"]
[EventCountry "SRB"]
[SourceTitle "playchess.com"]
[Source "ChessBase"]
[SourceQuality "1"]
[TimeControl "5400+30"]

1. e4 {[%emt 0:00:00]} e6 {[%emt 0:01:47]} 2. d4 {[%emt 0:00:00]} d5 {[%emt 0:00:08]} 3. Nc3 {[%emt 0:00:00]} Nc6 {[%emt 0:00:25]} 4. Nf3 {[%emt 0:00:49]} Nf6 {[%emt 0:00:05]} 5. e5 {[%emt 0:02:04]} Ne4 {[%emt 0:00:20]} 6. Ne2 {[%emt 0:06:30]} f6 {[%emt 0:00:12]} 7. exf6 {[%emt 0:01:10]} Nxf6 {[%emt 0:03:43]} 8. Ng3 {[%emt 0:02:37]} Bd6 {[%emt 0:01:11]} 9. Bb5 {[%emt 0:12:17]} O-O {[%emt 0:12:08]} 10. O-O {[%emt 0:00:14]} Bd7 {[%emt 0:00:14]} 11. Re1 {[%emt 0:01:18]} Ng4 {[%emt 0:07:27]} 12. c4 {[%emt 0:08:08]} Qf6 {[%emt 0:29:53]} 13. Bxc6 {[%emt 0:02:01]} Bxc6 {[%emt 0:04:09]} 14. c5 {[%emt 0:00:29]} Bxg3 {[%emt 0:06:46]} 15. hxg3 {[%emt 0:03:51]} Qf5 {[%emt 0:06:27]} 16. Bf4 {[%emt 0:05:43]} Qh5 {[%emt 0:00:09]} 17. Rxe6 {[%emt 0:03:58]} g5 {[%emt 0:08:11]} 18. Re5 {[%emt 0:09:41]} Nxe5 {[%emt 0:00:33]} 19. Bxe5 {[%emt 0:00:17]} Rae8 {[%emt 0:03:02]} 20. Qd2 {[%emt 0:03:21]} Rf5 {[%emt 0:03:58]} 21. Ne1 {[%emt 0:10:51]} Rf7 {[%emt 0:02:41]} 22. f3 {[%emt 0:01:37]} Qg6 {[%emt 0:00:31]} 23. Nd3 {[%emt 0:24:34]} Bb5 {[%emt 0:01:22]} 24. Nf2 {[%emt 0:00:00]} b6 {[%emt 0:02:46]} 25. Rc1 {[%emt 0:00:00]} h6 {[%emt 0:00:30]} 26. b3 {[%emt 0:00:00]} Ba6 {[%emt 0:00:30]} 27. Ng4 {[%emt 0:00:00]} Bc8 {[%emt 0:00:30]} 28. Ne3 {[%emt 0:00:00]} c6 {[%emt 0:00:30]} 29. cxb6 {[%emt 0:00:00]} axb6 {[%emt 0:00:00]} 30. b4 {[%emt 0:00:00]} b5 {[%emt 0:00:59]} 31. Nc2 {[%emt 0:00:00]} h5 {[%emt 0:00:35]} 32. Ne3 {[%emt 0:00:00]} Bd7 {[%emt 0:00:08]} 33. Nd1 {[%emt 0:00:00]} h4 {[%emt 0:01:01]} 34. g4 {[%emt 0:00:00]} h3 {[%emt 0:01:44]} 35. Nf2 {[%emt 0:00:00]} hxg2 {[%emt 0:00:07]} 36. Kxg2 {[%emt 0:00:00]} Rh7 {[%emt 0:00:32]} 37. Nh3 {[%emt 0:00:00]} Rxh3 {[%emt 0:02:28]} 38. Kxh3 {[%emt 0:00:00]} Rf8 {[%emt 0:00:01]} 39. Kg2 {[%emt 0:00:38]} Rf7 {[%emt 0:01:15]} 40. Rh1 {[%emt 0:02:18]} Rh7 {[%emt 0:00:02]} 41. Rxh7 Kxh7 {[%emt 0:00:02]} 42. Bg3 {[%emt 0:02:10]} Kg7 {[%emt 0:00:31]} 43. Bf2 {[%emt 0:00:38]} Qf6 {[%emt 0:00:32]} 44. Be3 {[%emt 0:00:37]} Kg6 {[%emt 0:00:04]} 45. Qc2+ {[%emt 0:00:26]} Kg7 {[%emt 0:00:06]} 46. Qc1 {[%emt 0:00:39]} Kg6 {[%emt 0:00:06]} 47. Qh1 {[%emt 0:00:36]} Qg7 {[%emt 0:01:12]} 48. Qh2 {[%emt 0:00:54]} Kf7 {[%emt 0:01:35]} 49. Qd6 {[%emt 0:00:54]} Kg8 {[%emt 0:00:49]} 50. Qe5 {[%emt 0:01:18]} Qh7 {[%emt 0:00:02]} 51. Bxg5 {[%emt 0:01:17]} Qc2+ {[%emt 0:00:16]} 52. Kg3 {[%emt 0:00:07]} Qd1 {[%emt 0:00:23]} 53. Bh6 {[%emt 0:01:07]} Qg1+ {[%emt 0:00:06]} 54. Kh4 {[%emt 0:00:28]} Kf7 {[%emt 0:01:41]} 55. Kg5 {[%emt 0:00:37]} Qc1+ {[%emt 0:00:30]} 56. f4 {[%emt 0:00:32]} Bxg4 {[%emt 0:00:03]} 57. Qg7+ {[%emt 0:00:42]} Ke6 {[%emt 0:00:25]} 58. Qf6+ {[%emt 0:00:25]} Kd7 {[%emt 0:00:04]} 59. Kxg4 {[%emt 0:00:07]} Qd1+ {[%emt 0:00:09]} 60. Kf5 {[%emt 0:00:46]} Qd3+ {[%emt 0:00:26]} 61. Kg5 {[%emt 0:00:08]} Qg3+ {[%emt 0:00:33]} 62. Kh5 {[%emt 0:00:05]} Qh3+ {[%emt 0:00:04]} 63. Kg6 {[%emt 0:00:20]} Qg2+ {[%emt 0:00:08]} 64. Bg5 {[%emt 0:00:31]} Qxa2 {[%emt 0:00:29]} 65. Qd8+ {[%emt 0:00:09]} 1-0

[Event "2nd Summer Festival Belgrade GM 2019"]
[Site "Belgrade"]
[Date "2019.06.25"]
[Round "3.1"]
[White "Lee, Jun Hyeok"]
[Black "Damljanovic, Branko"]
[Result "0-1"]
[ECO "B20"]
[WhiteElo "2386"]
[BlackElo "2468"]
[Annotator "ChessBase"]
[PlyCount "78"]
[EventDate "2019.06.25"]
[EventType "tourn"]
[EventCountry "SRB"]
[SourceTitle "playchess.com"]
[Source "ChessBase"]
[SourceQuality "1"]
[TimeControl "5400+30"]

1. e4 {[%emt 0:00:00]} c5 {[%emt 0:07:09]} 2. b3 {[%emt 0:00:00]} e5 {[%emt 0:00:25]} 3. Bb2 {[%emt 0:00:53]} Nc6 {[%emt 0:00:09]} 4. Bc4 {[%emt 0:00:22]} d6 {[%emt 0:00:18]} 5. Nc3 {[%emt 0:01:14]} Nf6 {[%emt 0:00:20]} 6. d3 {[%emt 0:00:52]} Be7 {[%emt 0:00:07]} 7. Nge2 {[%emt 0:00:24]} O-O {[%emt 0:00:07]} 8. O-O {[%emt 0:00:19]} a6 {[%emt 0:08:51]} 9. a4 {[%emt 0:00:06]} Rb8 {[%emt 0:03:11]} 10. Qd2 {[%emt 0:12:41]} Ne8 {[%emt 0:07:04]} 11. f4 {[%emt 0:01:40]} Nc7 {[%emt 0:00:28]} 12. a5 {[%emt 0:03:20]} Be6 {[%emt 0:01:04]} 13. Nd1 {[%emt 0:14:18]} Bxc4 {[%emt 0:10:25]} 14. bxc4 {[%emt 0:00:57]} Ne6 {[%emt 0:00:15]} 15. g3 {[%emt 0:08:57]} Ned4 {[%emt 0:06:58]} 16. Bc3 {[%emt 0:12:45]} Bf6 {[%emt 0:02:05]} 17. Ne3 {[%emt 0:01:14]} exf4 {[%emt 0:01:47]} 18. Nxf4 {[%emt 0:00:09]} g6 {[%emt 0:00:16]} 19. Nfd5 {[%emt 0:03:46]} Bg7 {[%emt 0:00:46]} 20. Rab1 {[%emt 0:03:52]} Kh8 {[%emt 0:01:38]} 21. Kh1 {[%emt 0:00:35]} f6 {[%emt 0:00:34]} 22. Rb6 {[%emt 0:04:06]} Rf7 {[%emt 0:00:31]} 23. Qd1 {[%emt 0:02:08]} Qf8 {[%emt 0:00:36]} 24. Nf4 {[%emt 0:02:02]} Re8 {[%emt 0:00:51]} 25. Bd2 {[%emt 0:02:15]} f5 {[%emt 0:04:54]} 26. exf5 {[%emt 0:06:43]} Nxf5 {[%emt 0:00:17]} 27. Nxf5 {[%emt 0:00:13]} Rxf5 {[%emt 0:00:10]} 28. h4 {[%emt 0:00:27]} Re7 {[%emt 0:03:50]} 29. Kg2 {[%emt 0:02:45]} Ref7 {[%emt 0:01:01]} 30. Re1 {[%emt 0:03:06]} Be5 {[%emt 0:00:18]} 31. Re4 {[%emt 0:04:21]} Qc8 {[%emt 0:02:21]} 32. Qg4 {[%emt 0:01:34]} Ne7 {[%emt 0:02:02]} 33. Rb1 {[%emt 0:01:47]} Ng8 {[%emt 0:00:14]} 34. Rb6 {[%emt 0:02:21]} Nf6 {[%emt 0:04:40]} 35. Qh3 {[%emt 0:00:02]} Qd7 {[%emt 0:05:09]} 36. Re2 {[%emt 0:00:48]} Nh5 {[%emt 0:01:01]} 37. Re4 {[%emt 0:02:10]} Qa4 {[%emt 0:02:58]} 38. Rb3 {[%emt 0:03:15]} Qa2 {[%emt 0:00:55]} 39. d4 {[%emt 0:00:15]} Qxc2 {[%emt 0:01:19]} 0-1

[Event "2nd Summer Festival Belgrade GM 2019"]
[Site "Belgrade"]
[Date "2019.06.25"]
[Round "3.2"]
[White "Ernst, Sipke"]
[Black "Yu, Jennifer"]
[Result "1-0"]
[ECO "A11"]
[WhiteElo "2541"]
[BlackElo "2369"]
[Annotator "ChessBase"]
[PlyCount "73"]
[EventDate "2019.06.25"]
[EventType "tourn"]
[EventCountry "SRB"]
[SourceTitle "playchess.com"]
[Source "ChessBase"]
[SourceQuality "1"]
[TimeControl "5400+30"]

1. Nf3 {[%emt 0:00:00]} Nf6 {[%emt 0:00:00]} 2. c4 {[%emt 0:00:05]} c6 {[%emt 0:00:00]} 3. g3 {[%emt 0:01:30]} g6 {[%emt 0:00:22]} 4. b3 {[%emt 0:00:08]} Bg7 {[%emt 0:00:55]} 5. Bb2 {[%emt 0:00:07]} O-O {[%emt 0:01:02]} 6. Bg2 {[%emt 0:00:15]} d5 {[%emt 0:00:39]} 7. O-O {[%emt 0:00:35]} Nbd7 {[%emt 0:03:32]} 8. Qc2 {[%emt 0:05:15]} e6 {[%emt 0:03:53]} 9. d3 {[%emt 0:03:51]} Re8 {[%emt 0:02:28]} 10. Ne5 {[%emt 0:01:07]} Nxe5 {[%emt 0:01:12]} 11. Bxe5 {[%emt 0:00:08]} Nd7 {[%emt 0:01:30]} 12. Bxg7 {[%emt 0:00:08]} Kxg7 {[%emt 0:00:03]} 13. d4 {[%emt 0:02:50]} f5 {[%emt 0:06:09]} 14. Nd2 {[%emt 0:06:07]} Qf6 {[%emt 0:03:38]} 15. e3 {[%emt 0:12:19]} dxc4 {[%emt 0:09:18]} 16. Nxc4 {[%emt 0:00:34]} e5 {[%emt 0:00:22]} 17. Rad1 {[%emt 0:00:54]} e4 {[%emt 0:10:43]} 18. d5 {[%emt 0:06:00]} c5 {[%emt 0:02:15]} 19. a4 {[%emt 0:06:09]} b6 {[%emt 0:10:42]} 20. f3 {[%emt 0:03:09]} exf3 {[%emt 0:02:27]} 21. Bxf3 {[%emt 0:00:14]} Rb8 {[%emt 0:00:09]} 22. e4 {[%emt 0:09:26]} Ne5 {[%emt 0:01:41]} 23. Bg2 {[%emt 0:00:25]} Bd7 {[%emt 0:09:08]} 24. Bh3 {[%emt 0:04:01]} Nf7 {[%emt 0:05:06]} 25. exf5 {[%emt 0:04:13]} g5 {[%emt 0:16:15]} 26. Rf2 {[%emt 0:04:59]} h5 {[%emt 0:00:35]} 27. Bg2 {[%emt 0:06:04]} g4 {[%emt 0:04:46]} 28. d6 {[%emt 0:07:38]} Rbd8 {[%emt 0:01:49]} 29. a5 {[%emt 0:06:11]} b5 {[%emt 0:00:15]} 30. Nd2 {[%emt 0:00:05]} Nxd6 {[%emt 0:00:16]} 31. Qxc5 {[%emt 0:00:09]} a6 {[%emt 0:02:41]} 32. Nf1 {[%emt 0:05:25]} Bxf5 {[%emt 0:01:25]} 33. Ne3 {[%emt 0:01:54]} Re5 {[%emt 0:00:10]} 34. Nxf5+ {[%emt 0:00:58]} Nxf5 {[%emt 0:00:50]} 35. Qc7+ {[%emt 0:00:08]} Re7 {[%emt 0:00:37]} 36. Qxd8 {[%emt 0:00:14]} Re1+ {[%emt 0:00:07]} 37. Bf1 {[%emt 0:00:30]} 1-0

[Event "2nd Summer Festival Belgrade GM 2019"]
[Site "Belgrade"]
[Date "2019.06.25"]
[Round "3.3"]
[White "Liu, Zhaoqi"]
[Black "Chen, Peng"]
[Result "1/2-1/2"]
[ECO "D17"]
[WhiteElo "2386"]
[BlackElo "2328"]
[Annotator "NA"]
[PlyCount "55"]
[EventDate "2019.06.25"]
[EventType "tourn"]
[EventCountry "SRB"]
[SourceTitle "playchess.com"]
[Source "ChessBase"]
[SourceQuality "1"]
[TimeControl "5400+30"]

1. d4 {[%emt 0:11:58]} d5 {[%emt 0:00:00]} 2. c4 {[%emt 0:00:06]} c6 {[%emt 0:00:01]} 3. Nf3 {[%emt 0:00:09]} Nf6 {[%emt 0:00:03]} 4. Nc3 {[%emt 0:00:18]} dxc4 {[%emt 0:01:23]} 5. a4 {[%emt 0:00:10]} Bf5 {[%emt 0:00:05]} 6. Ne5 {[%emt 0:01:46]} Nbd7 {[%emt 0:01:51]} 7. Nxc4 {[%emt 0:02:33]} Nb6 {[%emt 0:01:42]} 8. Ne5 {[%emt 0:00:51]} a5 {[%emt 0:00:14]} 9. f3 {[%emt 0:01:26]} Nfd7 {[%emt 0:00:23]} 10. Nxd7 {[%emt 0:01:01]} Nxd7 {[%emt 0:00:15]} 11. e4 {[%emt 0:00:05]} Bg6 {[%emt 0:00:08]} 12. Be3 {[%emt 0:03:53]} e6 {[%emt 0:00:09]} 13. Be2 {[%emt 0:08:32]} Bb4 {[%emt 0:06:04]} 14. O-O {[%emt 0:00:58]} O-O {[%emt 0:00:05]} 15. Qb3 {[%emt 0:01:29]} Qb8 {[%emt 0:01:08]} 16. Rad1 {[%emt 0:02:12]} Re8 {[%emt 0:01:33]} 17. Bc4 {[%emt 0:07:57]} Kh8 {[%emt 0:00:49]} 18. Bf2 {[%emt 0:05:07]} Bd6 {[%emt 0:02:35]} 19. g3 {[%emt 0:00:39]} Qc7 {[%emt 0:00:17]} 20. Kg2 {[%emt 0:00:45]} Rab8 {[%emt 0:00:26]} 21. h4 {[%emt 0:02:39]} h5 {[%emt 0:02:59]} 22. Rc1 {[%emt 0:07:54]} Rbd8 {[%emt 0:06:09]} 23. Rfd1 {[%emt 0:01:23]} Qb8 {[%emt 0:03:07]} 24. e5 {[%emt 0:13:04]} Bb4 {[%emt 0:02:28]} 25. Ne4 {[%emt 0:00:52]} Kg8 {[%emt 0:04:52]} 26. Bd3 {[%emt 0:02:00]} Nf8 {[%emt 0:00:24]} 27. Bc4 {[%emt 0:00:05]} Nd7 {[%emt 0:00:05]} 28. Bd3 {[%emt 0:00:07]} 1/2-1/2

[Event "2nd Summer Festival Belgrade GM 2019"]
[Site "Belgrade"]
[Date "2019.06.25"]
[Round "3.4"]
[White "Batsuren, Dambasuren"]
[Black "Nandhidhaa, P V"]
[Result "0-1"]
[ECO "D37"]
[WhiteElo "2439"]
[BlackElo "2259"]
[Annotator "NA"]
[PlyCount "88"]
[EventDate "2019.06.25"]
[EventType "tourn"]
[EventCountry "SRB"]
[SourceTitle "playchess.com"]
[Source "ChessBase"]
[SourceQuality "1"]
[TimeControl "5400+30"]

1. d4 {[%emt 0:00:00]} Nf6 {[%emt 0:00:00]} 2. c4 {[%emt 0:00:00]} e6 {[%emt 0:00:00]} 3. Nf3 {[%emt 0:00:00]} d5 {[%emt 0:00:00]} 4. Nc3 {[%emt 0:00:00]} Be7 {[%emt 0:00:00]} 5. Bf4 {[%emt 0:00:00]} O-O {[%emt 0:00:00]} 6. e3 {[%emt 0:00:00]} Nbd7 {[%emt 0:00:22]} 7. Rc1 {[%emt 0:01:48]} c5 {[%emt 0:00:33]} 8. cxd5 {[%emt 0:09:42]} Nxd5 {[%emt 0:01:38]} 9. Bg3 {[%emt 0:09:07]} cxd4 {[%emt 0:03:06]} 10. Nxd4 {[%emt 0:03:29]} Nxc3 {[%emt 0:01:33]} 11. bxc3 {[%emt 0:00:04]} Nc5 {[%emt 0:04:12]} 12. Be2 {[%emt 0:01:13]} f6 {[%emt 0:03:08]} 13. Qc2 {[%emt 0:04:03]} e5 {[%emt 0:04:17]} 14. Nf5 {[%emt 0:00:09]} Bxf5 {[%emt 0:00:14]} 15. Qxf5 {[%emt 0:00:05]} Qd7 {[%emt 0:01:31]} 16. Qxd7 {[%emt 0:02:29]} Nxd7 {[%emt 0:00:01]} 17. Bc4+ {[%emt 0:00:07]} Kh8 {[%emt 0:00:06]} 18. Ke2 {[%emt 0:00:04]} Rac8 {[%emt 0:02:36]} 19. Bd5 {[%emt 0:05:32]} Rc7 {[%emt 0:01:11]} 20. Rhd1 {[%emt 0:00:29]} Nb6 {[%emt 0:03:34]} 21. Bb3 {[%emt 0:01:40]} Ba3 {[%emt 0:05:47]} 22. Rc2 {[%emt 0:00:27]} g6 {[%emt 0:00:30]} 23. h4 {[%emt 0:07:13]} Kg7 {[%emt 0:01:21]} 24. h5 {[%emt 0:02:05]} Rfc8 {[%emt 0:05:20]} 25. Rd3 {[%emt 0:09:19]} Bb4 {[%emt 0:03:50]} 26. Be6 {[%emt 0:05:26]} Re8 {[%emt 0:09:53]} 27. Bb3 {[%emt 0:00:07]} Rec8 {[%emt 0:00:32]} 28. f4 {[%emt 0:03:22]} Rxc3 {[%emt 0:07:32]} 29. Rdxc3 {[%emt 0:01:07]} Bxc3 {[%emt 0:00:07]} 30. Kd3 {[%emt 0:02:24]} Ba1 {[%emt 0:00:04]} 31. Rf2 {[%emt 0:02:02]} Rc3+ {[%emt 0:03:32]} 32. Kd2 {[%emt 0:01:46]} Nc4+ {[%emt 0:02:57]} 33. Bxc4 {[%emt 0:00:12]} Rxc4 {[%emt 0:00:04]} 34. Rf1 {[%emt 0:00:12]} Bc3+ {[%emt 0:01:29]} 35. Kd3 {[%emt 0:00:07]} b5 {[%emt 0:01:16]} 36. fxe5 {[%emt 0:00:18]} Bxe5 {[%emt 0:01:33]} 37. Bf4 {[%emt 0:01:47]} Bxf4 {[%emt 0:01:42]} 38. exf4 {[%emt 0:00:02]} gxh5 {[%emt 0:00:17]} 39. f5 {[%emt 0:02:00]} Kh6 {[%emt 0:01:01]} 40. Re1 {[%emt 0:00:22]} Kg5 {[%emt 0:00:55]} 41. Re7 {[%emt 0:00:11]} Ra4 {[%emt 0:00:25]} 42. Rg7+ {[%emt 0:00:18]} Kxf5 {[%emt 0:00:22]} 43. Rxh7 {[%emt 0:00:03]} Kg6 {[%emt 0:00:21]} 44. Rb7 {[%emt 0:00:05]} a6 {[%emt 0:00:04]} 0-1

[Event "2nd Summer Festival Belgrade GM 2019"]
[Site "Belgrade"]
[Date "2019.06.26"]
[Round "4.1"]
[White "Yu, Jennifer"]
[Black "Damjanovic, Vuk"]
[Result "1-0"]
[ECO "A10"]
[WhiteElo "2369"]
[BlackElo "2283"]
[Annotator "NA"]
[PlyCount "71"]
[EventDate "2019.06.26"]
[EventType "tourn"]
[EventCountry "SRB"]
[SourceTitle "playchess.com"]
[Source "ChessBase"]
[SourceQuality "1"]
[TimeControl "5400+30"]

1. Nf3 {[%emt 0:00:00]} e6 {[%emt 0:02:29]} 2. c4 {[%emt 0:00:52]} f5 {[%emt 0:01:26]} 3. g3 {[%emt 0:02:36]} Nf6 {[%emt 0:00:50]} 4. Bg2 {[%emt 0:00:59]} d5 {[%emt 0:01:11]} 5. O-O {[%emt 0:03:20]} Be7 {[%emt 0:03:47]} 6. b3 {[%emt 0:02:01]} O-O {[%emt 0:00:58]} 7. Bb2 {[%emt 0:01:00]} a5 {[%emt 0:04:20]} 8. Nc3 {[%emt 0:02:37]} c6 {[%emt 0:04:22]} 9. d3 {[%emt 0:04:49]} Re8 {[%emt 0:04:32]} 10. Re1 {[%emt 0:08:19]} d4 {[%emt 0:12:44]} 11. Na4 {[%emt 0:22:48]} Bb4 {[%emt 0:08:43]} 12. Rf1 {[%emt 0:00:12]} e5 {[%emt 0:01:14]} 13. e3 {[%emt 0:15:37]} dxe3 {[%emt 0:07:24]} 14. Nxe5 {[%emt 0:00:06]} exf2+ {[%emt 0:09:33]} 15. Rxf2 {[%emt 0:00:12]} Rxe5 {[%emt 0:00:12]} 16. Bxe5 {[%emt 0:00:56]} Ng4 {[%emt 0:00:44]} 17. Bb2 {[%emt 0:13:05]} Nxf2 {[%emt 0:00:35]} 18. Kxf2 {[%emt 0:00:03]} Nd7 {[%emt 0:01:33]} 19. d4 {[%emt 0:00:06]} Bd6 {[%emt 0:11:12]} 20. d5 {[%emt 0:03:44]} c5 {[%emt 0:01:47]} 21. Nc3 {[%emt 0:06:04]} Be5 {[%emt 0:03:17]} 22. Qe2 {[%emt 0:00:05]} Qf6 {[%emt 0:01:30]} 23. Re1 {[%emt 0:04:32]} Bd4+ {[%emt 0:02:23]} 24. Kf1 {[%emt 0:00:06]} Nf8 {[%emt 0:01:05]} 25. Na4 {[%emt 0:02:56]} Bxb2 {[%emt 0:00:37]} 26. Qxb2 {[%emt 0:00:05]} Qxb2 {[%emt 0:00:59]} 27. Nxb2 {[%emt 0:00:03]} Bd7 {[%emt 0:00:21]} 28. d6 {[%emt 0:00:56]} Ra6 {[%emt 0:06:43]} 29. Bd5+ {[%emt 0:02:40]} Kh8 {[%emt 0:00:09]} 30. Nd3 {[%emt 0:00:13]} b6 {[%emt 0:07:44]} 31. Re7 {[%emt 0:00:09]} g6 {[%emt 0:00:35]} 32. Rf7 {[%emt 0:00:15]} Kg8 {[%emt 0:00:30]} 33. Rxd7+ {[%emt 0:00:06]} Kh8 {[%emt 0:00:01]} 34. Rf7 {[%emt 0:00:11]} a4 {[%emt 0:00:17]} 35. Rxf8+ {[%emt 0:00:07]} Kg7 {[%emt 0:00:05]} 36. Rf7+ {[%emt 0:00:04]} 1-0

[Event "2nd Summer Festival Belgrade GM 2019"]
[Site "Belgrade"]
[Date "2019.06.26"]
[Round "4.4"]
[White "Nandhidhaa, P V"]
[Black "Abramovic, Bosko"]
[Result "0-1"]
[ECO "B90"]
[WhiteElo "2259"]
[BlackElo "2353"]
[Annotator "NA"]
[PlyCount "114"]
[EventDate "2019.06.26"]
[EventType "tourn"]
[EventCountry "SRB"]
[SourceTitle "playchess.com"]
[Source "ChessBase"]
[SourceQuality "1"]
[TimeControl "5400+30"]

1. e4 {[%emt 0:02:11]} c5 {[%emt 0:00:24]} 2. Nf3 {[%emt 0:00:10]} d6 {[%emt 0:00:08]} 3. d4 {[%emt 0:00:04]} cxd4 {[%emt 0:00:08]} 4. Nxd4 {[%emt 0:00:05]} Nf6 {[%emt 0:00:03]} 5. Nc3 {[%emt 0:00:13]} a6 {[%emt 0:00:06]} 6. Nb3 {[%emt 0:00:39]} Nbd7 {[%emt 0:02:22]} 7. g4 {[%emt 0:01:29]} h6 {[%emt 0:01:52]} 8. Bg2 {[%emt 0:04:05]} Ne5 {[%emt 0:03:27]} 9. h3 {[%emt 0:00:40]} g5 {[%emt 0:00:08]} 10. Qe2 {[%emt 0:05:38]} e6 {[%emt 0:04:19]} 11. Be3 {[%emt 0:04:04]} b5 {[%emt 0:00:27]} 12. O-O-O {[%emt 0:00:25]} Bd7 {[%emt 0:00:30]} 13. f4 {[%emt 0:13:25]} gxf4 {[%emt 0:00:23]} 14. Bxf4 {[%emt 0:00:05]} Rc8 {[%emt 0:02:45]} 15. Qf2 {[%emt 0:08:54]} Be7 {[%emt 0:00:06]} 16. Kb1 {[%emt 0:55:53]} Qc7 {[%emt 0:02:02]} 17. Rc1 {[%emt 0:00:00]} Nc4 {[%emt 0:04:06]} 18. Rhf1 {[%emt 0:00:00]} b4 {[%emt 0:01:08]} 19. Ne2 {[%emt 0:00:00]} e5 {[%emt 0:00:13]} 20. g5 {[%emt 0:00:00]} Nh5 {[%emt 0:07:02]} 21. Bg3 {[%emt 0:00:00]} Be6 {[%emt 0:00:20]} 22. gxh6 {[%emt 0:00:00]} a5 {[%emt 0:02:49]} 23. Bf3 {[%emt 0:00:00]} Rxh6 {[%emt 0:03:27]} 24. Bh4 {[%emt 0:00:00]} a4 {[%emt 0:00:51]} 25. Bxe7 {[%emt 0:00:00]} Qxe7 {[%emt 0:11:03]} 26. Bxh5 {[%emt 0:00:00]} Rxh5 {[%emt 0:01:30]} 27. Ng3 {[%emt 0:00:00]} Rxh3 {[%emt 0:03:50]} 28. Nf5 {[%emt 0:00:00]} Bxf5 {[%emt 0:00:38]} 29. exf5 {[%emt 0:00:00]} Qb7 {[%emt 0:17:37]} 30. Nd2 {[%emt 0:00:00]} Na3+ {[%emt 0:06:57]} 31. bxa3 {[%emt 0:00:00]} bxa3+ {[%emt 0:00:09]} 32. Nb3 {[%emt 0:00:00]} Qb4 {[%emt 0:02:29]} 33. Qg2 {[%emt 0:00:00]} Qc3 {[%emt 0:00:36]} 34. Qg8+ {[%emt 0:00:00]} Kd7 {[%emt 0:00:06]} 35. Qxf7+ {[%emt 0:00:00]} Kc6 {[%emt 0:00:03]} 36. Qc4+ {[%emt 0:00:28]} Qxc4 {[%emt 0:00:13]} 37. Na5+ {[%emt 0:00:01]} Kc5 {[%emt 0:00:08]} 38. Nxc4 {[%emt 0:00:04]} Rb8+ {[%emt 0:00:39]} 39. Ka1 {[%emt 0:10:57]} Kxc4 {[%emt 0:00:08]} 40. f6 {[%emt 0:00:00]} Rf8 {[%emt 0:01:21]} 41. Rce1 {[%emt 0:00:00]} Kd5 {[%emt 0:00:38]} 42. c4+ {[%emt 0:00:00]} Ke6 {[%emt 0:00:18]} 43. Rd1 {[%emt 0:00:00]} Rc3 {[%emt 0:00:48]} 44. Kb1 {[%emt 0:00:00]} Rxc4 {[%emt 0:01:53]} 45. Rd3 {[%emt 0:00:00]} e4 {[%emt 0:00:22]} 46. Rxa3 {[%emt 0:00:00]} Rxf6 {[%emt 0:00:09]} 47. Rc1 {[%emt 0:00:00]} Rxc1+ {[%emt 0:00:18]} 48. Kxc1 {[%emt 0:00:00]} d5 {[%emt 0:00:09]} 49. Rxa4 {[%emt 0:00:00]} Ke5 {[%emt 0:00:06]} 50. Ra5 {[%emt 0:00:00]} Rf2 {[%emt 0:00:13]} 51. a4 {[%emt 0:00:00]} e3 {[%emt 0:00:12]} 52. Kd1 {[%emt 0:00:00]} Ra2 {[%emt 0:00:08]} 53. Ra8 {[%emt 0:00:00]} Ke4 {[%emt 0:00:10]} 54. Rb8 {[%emt 0:00:16]} Rxa4 {[%emt 0:00:15]} 55. Rb3 {[%emt 0:00:07]} Ra2 {[%emt 0:00:19]} 56. Ke1 {[%emt 0:00:09]} d4 {[%emt 0:00:10]} 57. Rb8 {[%emt 0:00:19]} Ra1+ {[%emt 0:00:13]} 0-1

[Event "2nd Summer Festival Belgrade GM 2019"]
[Site "Belgrade"]
[Date "2019.06.26"]
[Round "4.6"]
[White "Ernst, Sipke"]
[Black "Liu, Zhaoqi"]
[Result "1/2-1/2"]
[ECO "A30"]
[WhiteElo "2541"]
[BlackElo "2386"]
[Annotator "ChessBase"]
[PlyCount "20"]
[EventDate "2019.06.26"]
[EventType "tourn"]
[EventCountry "SRB"]
[SourceTitle "playchess.com"]
[Source "ChessBase"]
[SourceQuality "1"]
[TimeControl "5400+30"]

1. Nf3 {[%emt 0:00:32]} Nf6 {[%emt 0:00:00]} 2. c4 {[%emt 0:00:07]} c5 {[%emt 0:00:00]} 3. b3 {[%emt 0:00:03]} d5 {[%emt 0:00:00]} 4. cxd5 {[%emt 0:01:32]} Nxd5 {[%emt 0:00:00]} 5. Bb2 {[%emt 0:00:33]} Nc6 {[%emt 0:00:00]} 6. e3 {[%emt 0:08:16]} Ndb4 {[%emt 0:00:28]} 7. d3 {[%emt 0:03:39]} Bf5 {[%emt 0:00:31]} 8. e4 {[%emt 0:00:04]} Bg4 {[%emt 0:00:04]} 9. a3 {[%emt 0:00:18]} Bxf3 {[%emt 0:00:05]} 10. gxf3 {[%emt 0:00:03]} Na6 {[%emt 1:33:52]} 1/2-1/2